[Event "*** Titled Tuesday Blitz"]
[Site "Chess.com"]
[Date "2020.12.29"]
[Round "5"]
[White "The_Machine04"]
[Black "Kazmin_Dmitrij"]
[Result "1-0"]
[WhiteElo "2422"]
[BlackElo "2252"]
[TimeControl "180+1"]
[EndTime "10:55:24 PST"]
[Termination "The_Machine04 won on time"]

1. d4 {[%clk 0:02:18.2]} 1... f5 {[%clk 0:02:58.1]} 2. Bg5 {[%clk 0:02:17.7]}
2... g6 {[%clk 0:02:50.9]} 3. h4 {[%clk 0:02:11.8]} 3... Bg7 {[%clk 0:02:47.5]}
4. Nc3 {[%clk 0:02:12.3]} 4... h6 {[%clk 0:02:36.6]} 5. Bf4 {[%clk 0:02:11.7]}
5... e6 {[%clk 0:02:19.1]} 6. e4 {[%clk 0:02:11.3]} 6... Nf6 {[%clk 0:02:13.5]}
7. exf5 {[%clk 0:02:08.8]} 7... exf5 {[%clk 0:02:11.1]} 8. Bc4 {[%clk
0:02:08.3]} 8... d5 {[%clk 0:02:10.4]} 9. Qe2+ {[%clk 0:02:08.2]} 9... Kf7
{[%clk 0:02:06.3]} 10. Nf3 {[%clk 0:01:56.9]} 10... Re8 {[%clk 0:01:52]} 11.
Ne5+ {[%clk 0:01:54]} 11... Kg8 {[%clk 0:01:40.3]} 12. Bd3 {[%clk 0:01:48.5]}
12... Nc6 {[%clk 0:01:37.4]} 13. Qe3 {[%clk 0:01:20.5]} 13... Ng4 {[%clk
0:01:31.1]} 14. Qf3 {[%clk 0:01:06.1]} 14... Nxd4 {[%clk 0:01:17.2]} 15. Qxd5+
{[%clk 0:01:01.7]} 15... Qxd5 {[%clk 0:01:03.9]} 16. Nxd5 {[%clk 0:01:02.6]}
16... Nxe5 {[%clk 0:01:00.2]} 17. O-O-O {[%clk 0:00:54.8]} 17... Nxd3+ {[%clk
0:00:54.9]} 18. Rxd3 {[%clk 0:00:54.5]} 18... Ne2+ {[%clk 0:00:54.9]} 19. Kb1
{[%clk 0:00:50.7]} 19... Nxf4 {[%clk 0:00:54.8]} 20. Nxf4 {[%clk 0:00:51.6]}
20... Kh7 {[%clk 0:00:46.9]} 21. Rhd1 {[%clk 0:00:50.1]} 21... Be5 {[%clk
0:00:27.8]} 22. Nd5 {[%clk 0:00:46.4]} 22... Be6 {[%clk 0:00:21.1]} 23. f4
{[%clk 0:00:36.4]} 23... Bxd5 {[%clk 0:00:20.3]} 24. Rxd5 {[%clk 0:00:36.9]}
24... Bd6 {[%clk 0:00:20.4]} 25. c4 {[%clk 0:00:34.8]} 25... b6 {[%clk 0:00:20]}
26. b4 {[%clk 0:00:32.8]} 26... a5 {[%clk 0:00:18.7]} 27. c5 {[%clk 0:00:32.7]}
27... bxc5 {[%clk 0:00:17.2]} 28. bxc5 {[%clk 0:00:33.6]} 28... Rab8+ {[%clk
0:00:17.4]} 29. Kc2 {[%clk 0:00:30.4]} 29... Bxf4 {[%clk 0:00:17.1]} 30. Rd7+
{[%clk 0:00:29.9]} 30... Kg8 {[%clk 0:00:17.2]} 31. Kc3 {[%clk 0:00:19.9]} 31...
Be5+ {[%clk 0:00:16.7]} 32. Kc4 {[%clk 0:00:19.3]} 32... Rb4+ {[%clk 0:00:15.9]}
33. Kd5 {[%clk 0:00:18.4]} 33... Bf6 {[%clk 0:00:14]} 34. Kc6 {[%clk 0:00:16.4]}
34... Be5 {[%clk 0:00:12.5]} 35. Kd5 {[%clk 0:00:13.1]} 35... Bg3 {[%clk
0:00:09.3]} 36. Kc6 {[%clk 0:00:11.5]} 36... Rxh4 {[%clk 0:00:08.4]} 37. Rd8
{[%clk 0:00:09.2]} 37... Re4 {[%clk 0:00:05.8]} 38. R8d7 {[%clk 0:00:07.8]}
38... R4e6+ {[%clk 0:00:05.6]} 39. Kb7 {[%clk 0:00:07.8]} 39... c6 {[%clk
0:00:04.7]} 40. Ka6 {[%clk 0:00:04.9]} 40... Rb8 {[%clk 0:00:03.7]} 41. Ra7
{[%clk 0:00:04.3]} 41... Re4 {[%clk 0:00:02.5]} 42. Rdd7 {[%clk 0:00:04]} 42...
Be5 {[%clk 0:00:01.8]} 43. Re7 {[%clk 0:00:02]} 43... f4 {[%clk 0:00:01.7]} 44.
Re6 {[%clk 0:00:01.8]} 1-0

[Event "*** Titled Tuesday Blitz"]
[Site "Chess.com"]
[Date "2020.12.29"]
[Round "5"]
[White "MumLookatMeNow"]
[Black "Keures"]
[Result "1-0"]
[WhiteElo "2520"]
[BlackElo "2334"]
[TimeControl "180+1"]
[EndTime "10:55:25 PST"]
[Termination "MumLookatMeNow won by resignation"]

1. e4 {[%clk 0:03:00.9]} 1... e6 {[%clk 0:03:00.1]} 2. d4 {[%clk 0:02:59.4]}
2... d5 {[%clk 0:03:00.2]} 3. Nc3 {[%clk 0:02:59.8]} 3... Nf6 {[%clk 0:02:59.5]}
4. e5 {[%clk 0:02:59.9]} 4... Ne4 {[%clk 0:02:58.3]} 5. Nxe4 {[%clk 0:02:59.3]}
5... dxe4 {[%clk 0:02:58.3]} 6. Bc4 {[%clk 0:03:00.2]} 6... a6 {[%clk
0:02:58.4]} 7. a4 {[%clk 0:02:58.5]} 7... c5 {[%clk 0:02:58.5]} 8. d5 {[%clk
0:02:58]} 8... Qb6 {[%clk 0:02:58.3]} 9. c3 {[%clk 0:02:41.8]} 9... exd5 {[%clk
0:02:56.8]} 10. Qxd5 {[%clk 0:02:38.6]} 10... Be6 {[%clk 0:02:54.3]} 11. Qxe4
{[%clk 0:02:38]} 11... Bxc4 {[%clk 0:02:54.3]} 12. Qxc4 {[%clk 0:02:38.9]} 12...
Qg6 {[%clk 0:02:51.7]} 13. g3 {[%clk 0:01:39.9]} 13... Qc6 {[%clk 0:02:50.8]}
14. f3 {[%clk 0:01:35.4]} 14... Nd7 {[%clk 0:02:46.9]} 15. Qe2 {[%clk
0:01:15.6]} 15... O-O-O {[%clk 0:02:35.1]} 16. Nh3 {[%clk 0:01:12.3]} 16... Nxe5
{[%clk 0:02:28.6]} 17. O-O {[%clk 0:01:09.6]} 17... Re8 {[%clk 0:02:15.8]} 18.
Bf4 {[%clk 0:01:03.5]} 18... Bd6 {[%clk 0:02:03.3]} 19. Ng5 {[%clk 0:00:44.5]}
19... f6 {[%clk 0:01:55.3]} 20. Ne4 {[%clk 0:00:39.6]} 20... Nxf3+ {[%clk
0:01:37.3]} 21. Qxf3 {[%clk 0:00:38.8]} 21... Bxf4 {[%clk 0:01:36.3]} 22. Qg4+
{[%clk 0:00:22.6]} 22... Qe6 {[%clk 0:01:10.1]} 23. Qxe6+ {[%clk 0:00:22]} 23...
Rxe6 {[%clk 0:01:08.3]} 24. Rxf4 {[%clk 0:00:22.9]} 24... b6 {[%clk 0:01:05.5]}
25. Rd1 {[%clk 0:00:21.7]} 25... Kc7 {[%clk 0:01:01.7]} 26. Nf2 {[%clk
0:00:17.3]} 26... Re2 {[%clk 0:00:53]} 27. b4 {[%clk 0:00:16.3]} 27... Rhe8
{[%clk 0:00:47.7]} 28. bxc5 {[%clk 0:00:15.8]} 28... bxc5 {[%clk 0:00:48.6]} 29.
Rd5 {[%clk 0:00:15.5]} 29... Kc6 {[%clk 0:00:45.5]} 30. Rff5 {[%clk 0:00:15.9]}
30... R8e5 {[%clk 0:00:29.2]} 31. Rdxe5 {[%clk 0:00:15.2]} 31... fxe5 {[%clk
0:00:28.5]} 32. Nd3 {[%clk 0:00:14.2]} 32... Kd6 {[%clk 0:00:22.5]} 33. Rf7
{[%clk 0:00:11.5]} 33... Re3 {[%clk 0:00:21.5]} 34. Nf2 {[%clk 0:00:10.5]} 34...
Rxc3 {[%clk 0:00:21.5]} 35. Ne4+ {[%clk 0:00:10.2]} 35... Ke6 {[%clk 0:00:22]}
36. Nxc3 {[%clk 0:00:10.2]} 36... Kxf7 {[%clk 0:00:22.6]} 37. Kf2 {[%clk
0:00:11.1]} 37... Ke6 {[%clk 0:00:23]} 38. Ke3 {[%clk 0:00:12]} 38... Kf5 {[%clk
0:00:20.9]} 39. Ne4 {[%clk 0:00:12.4]} 39... c4 {[%clk 0:00:20.9]} 40. Nd6+
{[%clk 0:00:12.9]} 40... Kg4 {[%clk 0:00:21.5]} 41. Nxc4 {[%clk 0:00:13.8]}
41... Kh3 {[%clk 0:00:22]} 42. Nxe5 {[%clk 0:00:11.3]} 42... Kxh2 {[%clk
0:00:21.5]} 43. Kf2 {[%clk 0:00:12.2]} 43... g5 {[%clk 0:00:19.9]} 44. Kf3
{[%clk 0:00:10.6]} 44... h5 {[%clk 0:00:19.1]} 45. Nf7 {[%clk 0:00:08.8]} 45...
h4 {[%clk 0:00:18.4]} 46. gxh4 {[%clk 0:00:08.5]} 46... gxh4 {[%clk 0:00:19.3]}
47. Ng5 {[%clk 0:00:08]} 47... h3 {[%clk 0:00:15.6]} 48. a5 {[%clk 0:00:07.8]}
48... Kg1 {[%clk 0:00:11.6]} 49. Nxh3+ {[%clk 0:00:08.3]} 49... Kf1 {[%clk
0:00:12.5]} 50. Ke3 {[%clk 0:00:08.7]} 50... Ke1 {[%clk 0:00:11.7]} 51. Kd3
{[%clk 0:00:08.7]} 51... Kd1 {[%clk 0:00:12]} 52. Kc4 {[%clk 0:00:09]} 52... Kc2
{[%clk 0:00:11.3]} 53. Kc5 {[%clk 0:00:09.1]} 53... Kb3 {[%clk 0:00:11.6]} 54.
Kb6 {[%clk 0:00:10]} 54... Ka4 {[%clk 0:00:12.3]} 55. Kxa6 {[%clk 0:00:10.9]}
1-0

[Event "*** Titled Tuesday Blitz"]
[Site "Chess.com"]
[Date "2020.12.29"]
[Round "5"]
[White "MoreChessJulia"]
[Black "Kaslask"]
[Result "1-0"]
[WhiteElo "2097"]
[BlackElo "2262"]
[TimeControl "180+1"]
[EndTime "10:55:26 PST"]
[Termination "MoreChessJulia won on time"]

1. d4 {[%clk 0:02:59.2]} 1... Nf6 {[%clk 0:02:58.2]} 2. c4 {[%clk 0:02:58.9]}
2... g6 {[%clk 0:02:56.3]} 3. f3 {[%clk 0:02:57.4]} 3... Bg7 {[%clk 0:02:54.1]}
4. e4 {[%clk 0:02:57.6]} 4... d6 {[%clk 0:02:53.5]} 5. Nc3 {[%clk 0:02:56.8]}
5... O-O {[%clk 0:02:48.9]} 6. Bg5 {[%clk 0:02:55.5]} 6... h6 {[%clk 0:02:32]}
7. Be3 {[%clk 0:02:53.9]} 7... c5 {[%clk 0:02:21.9]} 8. d5 {[%clk 0:02:53]} 8...
e6 {[%clk 0:02:16]} 9. Qd2 {[%clk 0:02:52.2]} 9... h5 {[%clk 0:02:15.2]} 10. Bh6
{[%clk 0:02:44.4]} 10... exd5 {[%clk 0:02:07.1]} 11. cxd5 {[%clk 0:02:43.5]}
11... Re8 {[%clk 0:02:04.6]} 12. Bxg7 {[%clk 0:02:41.9]} 12... Kxg7 {[%clk
0:02:03.4]} 13. h3 {[%clk 0:02:33.2]} 13... Nbd7 {[%clk 0:01:56.9]} 14. g4
{[%clk 0:02:32]} 14... a6 {[%clk 0:01:46.1]} 15. Bd3 {[%clk 0:02:24.6]} 15...
Ne5 {[%clk 0:01:42.9]} 16. Kf2 {[%clk 0:02:23.8]} 16... c4 {[%clk 0:01:41]} 17.
Bc2 {[%clk 0:02:21.8]} 17... hxg4 {[%clk 0:01:37.5]} 18. hxg4 {[%clk 0:02:20.8]}
18... Rh8 {[%clk 0:01:36.8]} 19. Nge2 {[%clk 0:02:18.6]} 19... Bxg4 {[%clk
0:01:27.9]} 20. fxg4 {[%clk 0:02:14.7]} 20... Nfxg4+ {[%clk 0:01:27]} 21. Kg3
{[%clk 0:02:13.8]} 21... Qe7 {[%clk 0:01:11.2]} 22. Nd4 {[%clk 0:02:07.4]} 22...
b5 {[%clk 0:01:07.8]} 23. a3 {[%clk 0:02:04.5]} 23... Rae8 {[%clk 0:01:03.3]}
24. Nf3 {[%clk 0:01:59.9]} 24... Nxf3 {[%clk 0:01:00.8]} 25. Kxf3 {[%clk
0:01:59.1]} 25... Ne5+ {[%clk 0:00:56.7]} 26. Kg2 {[%clk 0:01:50.1]} 26... Qd7
{[%clk 0:00:53.6]} 27. Qf4 {[%clk 0:01:46.2]} 27... a5 {[%clk 0:00:48.2]} 28.
Raf1 {[%clk 0:01:41.7]} 28... Qe7 {[%clk 0:00:38]} 29. Nxb5 {[%clk 0:01:34.5]}
29... g5 {[%clk 0:00:35.2]} 30. Qg3 {[%clk 0:01:27]} 30... g4 {[%clk 0:00:32.4]}
31. Nd4 {[%clk 0:01:25.7]} 31... Qg5 {[%clk 0:00:31]} 32. Nf5+ {[%clk
0:01:21.3]} 32... Kg6 {[%clk 0:00:30.2]} 33. Nxd6 {[%clk 0:01:07.2]} 33... Nf3
{[%clk 0:00:26.3]} 34. e5+ {[%clk 0:01:03.7]} 34... Kg7 {[%clk 0:00:24]} 35.
Nf5+ {[%clk 0:00:49.3]} 35... Kg8 {[%clk 0:00:23]} 36. Rxh8+ {[%clk 0:00:47.4]}
36... Kxh8 {[%clk 0:00:21.2]} 37. Rh1+ {[%clk 0:00:31.5]} 37... Kg8 {[%clk
0:00:20.5]} 38. Nh6+ {[%clk 0:00:32]} 38... Kf8 {[%clk 0:00:19.9]} 39. Nxg4
{[%clk 0:00:30.7]} 39... Nxe5 {[%clk 0:00:12.8]} 40. Rh8+ {[%clk 0:00:21.1]}
40... Kg7 {[%clk 0:00:10.1]} 41. Rxe8 {[%clk 0:00:18.6]} 41... Nxg4 {[%clk
0:00:09.6]} 42. Re2 {[%clk 0:00:13.8]} 42... f5 {[%clk 0:00:07.9]} 43. Qc7+
{[%clk 0:00:11]} 43... Kh6 {[%clk 0:00:06.8]} 44. Re6+ {[%clk 0:00:10.1]} 44...
Nf6+ {[%clk 0:00:05.6]} 45. Qg3 {[%clk 0:00:07.6]} 45... Qd2+ {[%clk 0:00:04.6]}
46. Kh3 {[%clk 0:00:04.3]} 1-0

[Event "*** Titled Tuesday Blitz"]
[Site "Chess.com"]
[Date "2020.12.29"]
[Round "5"]
[White "BAS8892"]
[Black "dropstoneDP"]
[Result "0-1"]
[WhiteElo "2635"]
[BlackElo "2945"]
[TimeControl "180+1"]
[EndTime "10:55:27 PST"]
[Termination "dropstoneDP won on time"]

1. d4 {[%clk 0:02:44.5]} 1... f5 {[%clk 0:02:59.2]} 2. Bf4 {[%clk 0:02:41.1]}
2... Nf6 {[%clk 0:02:58.1]} 3. Nf3 {[%clk 0:02:41.2]} 3... d6 {[%clk 0:02:58.4]}
4. e3 {[%clk 0:02:41.2]} 4... h6 {[%clk 0:02:58.6]} 5. c3 {[%clk 0:02:40.2]}
5... g5 {[%clk 0:02:58.3]} 6. Bg3 {[%clk 0:02:40.3]} 6... Bg7 {[%clk 0:02:58.4]}
7. Bc4 {[%clk 0:02:37.8]} 7... e6 {[%clk 0:02:57.5]} 8. Nbd2 {[%clk 0:02:37.4]}
8... Qe7 {[%clk 0:02:56.7]} 9. Qb3 {[%clk 0:02:36]} 9... Nc6 {[%clk 0:02:49.8]}
10. O-O-O {[%clk 0:02:30.2]} 10... O-O {[%clk 0:02:47.3]} 11. Qc2 {[%clk
0:02:25.3]} 11... Bd7 {[%clk 0:02:26.7]} 12. h4 {[%clk 0:02:22.1]} 12... g4
{[%clk 0:02:25.6]} 13. Ne1 {[%clk 0:02:17.3]} 13... Nh5 {[%clk 0:02:06]} 14. Nf1
{[%clk 0:02:02.2]} 14... b5 {[%clk 0:01:46.9]} 15. Bb3 {[%clk 0:01:51.1]} 15...
a5 {[%clk 0:01:40]} 16. a3 {[%clk 0:01:38.3]} 16... b4 {[%clk 0:01:28.6]} 17. d5
{[%clk 0:01:26.9]} 17... a4 {[%clk 0:01:03]} 18. Bc4 {[%clk 0:01:14.5]} 18...
Na5 {[%clk 0:01:02.1]} 19. cxb4 {[%clk 0:01:14.1]} 19... Nxc4 {[%clk 0:00:50.9]}
20. Qxc4 {[%clk 0:01:14]} 20... exd5 {[%clk 0:00:51.6]} 21. Qxd5+ {[%clk
0:01:09.9]} 21... Be6 {[%clk 0:00:51.3]} 22. Qd2 {[%clk 0:01:09.1]} 22... Bb3
{[%clk 0:00:47.9]} 23. Nc2 {[%clk 0:00:57.1]} 23... Qf6 {[%clk 0:00:47.5]} 24.
Nd4 {[%clk 0:00:57.1]} 24... Bxd1 {[%clk 0:00:47.1]} 25. Kxd1 {[%clk 0:00:54]}
25... c5 {[%clk 0:00:45.9]} 26. Nc6 {[%clk 0:00:47.6]} 26... f4 {[%clk
0:00:42.7]} 27. Bxf4 {[%clk 0:00:42.2]} 27... Nxf4 {[%clk 0:00:42.1]} 28. exf4
{[%clk 0:00:42.6]} 28... Qxf4 {[%clk 0:00:39.6]} 29. Ne7+ {[%clk 0:00:31.7]}
29... Kh7 {[%clk 0:00:38.5]} 30. Qd3+ {[%clk 0:00:31.4]} 30... Rf5 {[%clk
0:00:37.8]} 31. Qxf5+ {[%clk 0:00:31]} 31... Qxf5 {[%clk 0:00:38.2]} 32. Nxf5
{[%clk 0:00:31]} 32... Bxb2 {[%clk 0:00:38]} 33. bxc5 {[%clk 0:00:27.4]} 33...
Bxa3 {[%clk 0:00:36.9]} 34. cxd6 {[%clk 0:00:21.7]} 34... Bb2 {[%clk 0:00:37.3]}
35. Kc2 {[%clk 0:00:19.9]} 35... a3 {[%clk 0:00:37.5]} 36. Nd2 {[%clk
0:00:19.6]} 36... Be5 {[%clk 0:00:32.5]} 37. d7 {[%clk 0:00:16.1]} 37... a2
{[%clk 0:00:30.7]} 38. Nb3 {[%clk 0:00:15.3]} 38... Rd8 {[%clk 0:00:19.9]} 39.
Nc5 {[%clk 0:00:13.1]} 39... a1=Q {[%clk 0:00:16.2]} 40. Rxa1 {[%clk 0:00:11.8]}
40... Bxa1 {[%clk 0:00:17.1]} 41. Ne7 {[%clk 0:00:10.9]} 41... Bf6 {[%clk
0:00:09.2]} 42. Nc6 {[%clk 0:00:10.8]} 42... Ra8 {[%clk 0:00:01.6]} 43. g3
{[%clk 0:00:05.8]} 43... Kg7 {[%clk 0:00:02]} 44. d8=Q {[%clk 0:00:02.4]} 44...
Bxd8 {[%clk 0:00:01.3]} 45. Nxd8 {[%clk 0:00:02.3]} 45... Kg6 {[%clk 0:00:02.2]}
0-1

[Event "*** Titled Tuesday Blitz"]
[Site "Chess.com"]
[Date "2020.12.29"]
[Round "5"]
[White "MacDaddyMac"]
[Black "GoltsevDmitry2000"]
[Result "0-1"]
[WhiteElo "2486"]
[BlackElo "2702"]
[TimeControl "180+1"]
[EndTime "10:55:27 PST"]
[Termination "GoltsevDmitry2000 won by resignation"]

1. e4 {[%clk 0:03:00.9]} 1... c5 {[%clk 0:02:59.2]} 2. Nc3 {[%clk 0:02:58.1]}
2... e6 {[%clk 0:02:59.4]} 3. f4 {[%clk 0:02:57.9]} 3... Nc6 {[%clk 0:02:59.3]}
4. Nf3 {[%clk 0:02:58.1]} 4... g6 {[%clk 0:02:58.1]} 5. Bb5 {[%clk 0:02:58.1]}
5... Bg7 {[%clk 0:02:56.6]} 6. Bxc6 {[%clk 0:02:58.3]} 6... bxc6 {[%clk
0:02:56.8]} 7. e5 {[%clk 0:02:58.4]} 7... Ne7 {[%clk 0:02:29.2]} 8. Ne4 {[%clk
0:02:58]} 8... O-O {[%clk 0:02:27.8]} 9. Nxc5 {[%clk 0:02:57.7]} 9... Nd5 {[%clk
0:02:27.8]} 10. d4 {[%clk 0:02:56.4]} 10... f6 {[%clk 0:02:20.3]} 11. O-O {[%clk
0:02:55.1]} 11... fxe5 {[%clk 0:02:18.9]} 12. fxe5 {[%clk 0:02:56]} 12... Rb8
{[%clk 0:02:13.3]} 13. c4 {[%clk 0:02:37.5]} 13... Nb6 {[%clk 0:02:12.3]} 14. b3
{[%clk 0:02:35.3]} 14... d6 {[%clk 0:02:07]} 15. exd6 {[%clk 0:02:15.2]} 15...
Qxd6 {[%clk 0:02:07.9]} 16. Ne4 {[%clk 0:02:15.6]} 16... Qd7 {[%clk 0:01:44.4]}
17. Bb2 {[%clk 0:01:57]} 17... Nxc4 {[%clk 0:01:37.8]} 18. Bc1 {[%clk
0:01:46.2]} 18... Nd6 {[%clk 0:01:32.1]} 19. Nc5 {[%clk 0:01:45.6]} 19... Qd8
{[%clk 0:01:26.9]} 20. Re1 {[%clk 0:01:29.5]} 20... Nf5 {[%clk 0:01:22.6]} 21.
Bb2 {[%clk 0:01:09]} 21... Qd5 {[%clk 0:01:16.6]} 22. Rc1 {[%clk 0:00:46.5]}
22... Rd8 {[%clk 0:01:00.7]} 23. Rc4 {[%clk 0:00:36.4]} 23... h5 {[%clk
0:00:46.2]} 24. Qe2 {[%clk 0:00:25.9]} 24... Re8 {[%clk 0:00:32.6]} 25. Qe4
{[%clk 0:00:18.1]} 25... a5 {[%clk 0:00:23.4]} 26. Qxd5 {[%clk 0:00:16.2]} 26...
cxd5 {[%clk 0:00:24.3]} 27. Ra4 {[%clk 0:00:16.8]} 27... Rb5 {[%clk 0:00:22]}
28. Re2 {[%clk 0:00:11.4]} 28... Re7 {[%clk 0:00:17.2]} 29. Nd3 {[%clk
0:00:10.4]} 29... Rc7 {[%clk 0:00:14.8]} 30. Nde5 {[%clk 0:00:09.6]} 30... Ne7
{[%clk 0:00:10.6]} 31. Ba3 {[%clk 0:00:06.4]} 31... Kh7 {[%clk 0:00:09.6]} 32.
Kf2 {[%clk 0:00:05.4]} 32... Bh6 {[%clk 0:00:09.7]} 33. Bd6 {[%clk 0:00:05.2]}
33... Ra7 {[%clk 0:00:08.1]} 34. Bc5 {[%clk 0:00:05.3]} 34... Rab7 {[%clk
0:00:08]} 35. Nf7 {[%clk 0:00:03.5]} 35... Nf5 {[%clk 0:00:05.2]} 36. Nxh6
{[%clk 0:00:01.7]} 36... Kxh6 {[%clk 0:00:06.1]} 37. Ne5 {[%clk 0:00:02.3]}
37... g5 {[%clk 0:00:05.8]} 38. Bd6 {[%clk 0:00:02.9]} 38... Nxd6 {[%clk
0:00:05.8]} 39. Nf3 {[%clk 0:00:03]} 39... Ne4+ {[%clk 0:00:06.2]} 40. Ke3
{[%clk 0:00:03.9]} 40... Rf7 {[%clk 0:00:06.7]} 41. Rc2 {[%clk 0:00:03.9]} 41...
Ba6 {[%clk 0:00:06.5]} 42. Ra3 {[%clk 0:00:04.2]} 42... Rbb7 {[%clk 0:00:05.1]}
43. Ne5 {[%clk 0:00:04.5]} 43... Rfc7 {[%clk 0:00:04.6]} 44. Rxa5 {[%clk
0:00:05]} 44... Rxc2 {[%clk 0:00:04.6]} 45. Rxa6 {[%clk 0:00:05.5]} 45... Rbc7
{[%clk 0:00:05]} 46. Rxe6+ {[%clk 0:00:05.6]} 46... Kh7 {[%clk 0:00:05.6]} 47.
g3 {[%clk 0:00:02.2]} 47... R7c3+ {[%clk 0:00:05.9]} 48. Nd3 {[%clk 0:00:02.6]}
48... Rd2 {[%clk 0:00:06.5]} 49. Rxe4 {[%clk 0:00:03.2]} 49... Rdxd3+ {[%clk
0:00:06.4]} 0-1

[Event "*** Titled Tuesday Blitz"]
[Site "Chess.com"]
[Date "2020.12.29"]
[Round "5"]
[White "Korchmar_Vasiliy"]
[Black "Harsha_Bharathakoti"]
[Result "0-1"]
[WhiteElo "2567"]
[BlackElo "2823"]
[TimeControl "180+1"]
[EndTime "10:55:29 PST"]
[Termination "Harsha_Bharathakoti won on time"]

1. e4 {[%clk 0:03:00.9]} 1... c5 {[%clk 0:02:55.1]} 2. Nf3 {[%clk 0:03:00.7]}
2... Nc6 {[%clk 0:02:55]} 3. d4 {[%clk 0:03:01.2]} 3... cxd4 {[%clk 0:02:55.1]}
4. Nxd4 {[%clk 0:03:02.1]} 4... Nf6 {[%clk 0:02:52.6]} 5. Nc3 {[%clk 0:03:02.2]}
5... d6 {[%clk 0:02:52.6]} 6. Bg5 {[%clk 0:02:58.4]} 6... e6 {[%clk 0:02:52.4]}
7. Qd3 {[%clk 0:02:58.4]} 7... Bd7 {[%clk 0:02:45.8]} 8. O-O-O {[%clk 0:02:58]}
8... a6 {[%clk 0:02:24.4]} 9. Kb1 {[%clk 0:02:56.2]} 9... Rc8 {[%clk 0:02:20.7]}
10. f4 {[%clk 0:02:54.4]} 10... Be7 {[%clk 0:02:16.8]} 11. g4 {[%clk 0:02:43.9]}
11... Qa5 {[%clk 0:01:42.5]} 12. Nb3 {[%clk 0:02:41.3]} 12... Qc7 {[%clk
0:01:42.2]} 13. Bxf6 {[%clk 0:02:35.1]} 13... Bxf6 {[%clk 0:01:41.9]} 14. g5
{[%clk 0:02:35.5]} 14... Be7 {[%clk 0:01:41.3]} 15. h4 {[%clk 0:02:35.1]} 15...
b5 {[%clk 0:01:38.2]} 16. h5 {[%clk 0:02:23.9]} 16... b4 {[%clk 0:01:38.5]} 17.
Ne2 {[%clk 0:02:21.1]} 17... a5 {[%clk 0:01:33.7]} 18. Bh3 {[%clk 0:02:13]}
18... a4 {[%clk 0:01:33.4]} 19. Nbd4 {[%clk 0:02:13.5]} 19... Nxd4 {[%clk
0:00:47.7]} 20. Nxd4 {[%clk 0:02:14.4]} 20... Qc4 {[%clk 0:00:48.1]} 21. Qxc4
{[%clk 0:01:59.5]} 21... Rxc4 {[%clk 0:00:47.9]} 22. g6 {[%clk 0:02:00.4]} 22...
Bf6 {[%clk 0:00:44.2]} 23. gxf7+ {[%clk 0:01:29.9]} 23... Ke7 {[%clk 0:00:44.4]}
24. Nf3 {[%clk 0:01:30.8]} 24... Rxe4 {[%clk 0:00:41.4]} 25. Rhe1 {[%clk
0:01:25.4]} 25... Rxe1 {[%clk 0:00:33.4]} 26. Rxe1 {[%clk 0:01:26.3]} 26... Kxf7
{[%clk 0:00:31.9]} 27. Ng5+ {[%clk 0:01:25.2]} 27... Bxg5 {[%clk 0:00:32.2]} 28.
fxg5 {[%clk 0:01:26.1]} 28... d5 {[%clk 0:00:26]} 29. Rf1+ {[%clk 0:01:23]}
29... Ke7 {[%clk 0:00:26.3]} 30. Rf4 {[%clk 0:01:23.9]} 30... e5 {[%clk
0:00:22]} 31. Rh4 {[%clk 0:01:20.8]} 31... Bxh3 {[%clk 0:00:21.6]} 32. Rxh3
{[%clk 0:01:21.7]} 32... Rf8 {[%clk 0:00:22.5]} 33. c3 {[%clk 0:01:18.3]} 33...
Rf1+ {[%clk 0:00:21.3]} 34. Kc2 {[%clk 0:01:18.6]} 34... Rf2+ {[%clk 0:00:22.2]}
35. Kc1 {[%clk 0:01:18.9]} 35... bxc3 {[%clk 0:00:19.9]} 36. Rxc3 {[%clk
0:01:19.8]} 36... Kd6 {[%clk 0:00:17.9]} 37. Ra3 {[%clk 0:01:09.7]} 37... e4
{[%clk 0:00:17.8]} 38. Rxa4 {[%clk 0:01:07.8]} 38... e3 {[%clk 0:00:18.3]} 39.
Kd1 {[%clk 0:00:57.7]} 39... Ke5 {[%clk 0:00:17.7]} 40. Ra7 {[%clk 0:00:36.9]}
40... d4 {[%clk 0:00:17.8]} 41. Rxg7 {[%clk 0:00:29.2]} 41... d3 {[%clk
0:00:18.2]} 42. Re7+ {[%clk 0:00:29.2]} 42... Kf4 {[%clk 0:00:18.2]} 43. Rf7+
{[%clk 0:00:22.1]} 43... Kg3 {[%clk 0:00:18.6]} 44. g6 {[%clk 0:00:19.9]} 44...
hxg6 {[%clk 0:00:11.5]} 45. hxg6 {[%clk 0:00:20.8]} 45... Rxb2 {[%clk
0:00:10.4]} 46. Kc1 {[%clk 0:00:17.4]} 46... Rc2+ {[%clk 0:00:10.8]} 47. Kb1
{[%clk 0:00:14.7]} 47... e2 {[%clk 0:00:11.3]} 48. Re7 {[%clk 0:00:14]} 48...
Rc7 {[%clk 0:00:09.5]} 49. g7 {[%clk 0:00:10]} 49... Rc8 {[%clk 0:00:09.6]} 0-1